bitfinex/quotes_SOLUSD_20250108
["timestamp","ask_amount","ask_price","bid_price","bid_amount"]
[1736345113591,20.0,197.99,197.89,2.42]
[1736345113786,20.0,197.99,197.89,3.1777871]
[1736345114786,20.0,197.99,197.88,143.3859]
[1736345115123,20.0,197.99,197.86,3.9533]
[1736345115124,20.0,197.95,197.86,1.5333]
[1736345118017,20.0,197.96,197.87,0.75791126]
[1736345118218,2.42,197.98,197.87,137.85791126]
[1736345118403,2.42,197.98,197.87,137.1]
[1736345118995,20.0,197.99,197.88,26.196884]
[1736345119195,1.5391,198.02,197.89,0.75768343]
[1736345119695,1.5391,198.02,197.89,137.85768343]
[1736345119899,1.5391,198.02,197.89,137.1]
[1736345120116,1.5391,198.02,197.9,0.75771638]
[1736345120623,23.54819722,198.02,197.9,0.75771638]
[1736345120917,21.5391,198.02,197.9,0.75771638]
[1736345122625,21.98499541,198.02,197.91,143.6026]
[1736345122807,21.98499541,198.02,197.92,0.75756267]
[1736345123309,1.98499541,198.02,197.93,1.5011]
[1736345123517,20.0,198.04,197.94,137.85749362]
[1736345123823,7.89473857,198.09,197.95,23.776884]
[1736345124023,20.0,198.06,197.96,0.75738573]
[1736345124191,9.91436252,198.09,197.97,23.776884]
[1736345124394,2.01962395,198.09,197.98,137.85733018]
[1736345124603,20.0,198.09,197.99,0.75736136]
[1736345124802,15.73133857,198.12,197.99,0.75736136]
[1736345125320,20.0,198.09,197.98,137.1]
[1736345125698,20.0,198.05,197.93,138.6011]
[1736345125897,20.0,198.05,197.94,0.75750896]
[1736345127901,20.0,198.05,197.93,138.6011]
[1736345128101,20.0,198.05,197.93,1.5011]
[1736345128314,20.0,198.05,197.93,2.25873978]
[1736345129305,22.0369869,198.05,197.93,1.5011]
[1736345129501,20.0,198.01,197.93,1.5011]
[1736345130410,20.0,198.01,197.91,137.1]
[1736345130602,20.0,198.01,197.9,18.134789]
[1736345131036,20.0,198.01,197.9,18.89255218]
[1736345131825,46.216884,198.0,197.9,18.134789]
[1736345132038,20.0,197.99,197.9,17.10063616]
[1736345132242,20.0,197.95,197.9,17.10063616]
[1736345133447,1.6101,197.94,197.9,0.44056565]
[1736345133628,2.44,197.93,197.9,0.44056565]
[1736345135135,2.44,197.93,197.81,6.3257]
[1736345135437,20.0,197.89,197.81,6.3257]
[1736345135641,20.0,197.89,197.78,140.7546]
[1736345136014,20.0,197.89,197.79,0.75814862]
[1736345136420,20.0,197.89,197.78,140.7546]
[1736345137038,20.0,197.89,197.78,3.6546]
[1736345137630,1.6101,197.94,197.78,3.6546]
[1736345137823,2.44,197.93,197.79,0.75814525]
[1736345138029,20.0,197.89,197.78,3.6546]
[1736345141420,21.9709329,197.89,197.78,3.6546]
[1736345142553,21.9709329,197.89,197.78,4.41280529]
[1736345143347,1.9709329,197.89,197.78,141.51280529]
[1736345143557,1.6101,197.94,197.78,156.12859787]
[1736345143927,20.0,197.91,197.79,15.37399787]
[1736345144129,20.0,197.91,197.8,0.75806809]
[1736345145042,20.0,197.91,197.79,0.75808543]
[1736345145632,20.0,197.92,197.8,39.15088187]
[1736345145836,20.0,197.92,197.81,0.75797773]
[1736345146043,1.98228031,197.94,197.82,143.1565]
[1736345146248,20.0,197.97,197.83,179.42879582]
[1736345146441,14.03583857,198.01,197.85,177.79268187]
[1736345146640,20.0,197.98,197.86,0.75775027]
[1736345147149,23.776884,198.0,197.86,0.75775027]
[1736345147344,2.0144563,198.01,197.87,176.25088187]
[1736345147550,7.89473857,198.04,197.9,6.5881]
[1736345147747,7.89473857,198.04,197.91,3.17761377]
[1736345147748,1.99915562,198.04,197.91,3.17761377]
[1736345147953,28.12586557,198.06,197.91,140.27761377]
[1736345148139,7.89473857,198.06,197.94,23.776884]
[1736345148342,7.89473857,198.06,197.95,0.75743967]
[1736345148648,20.0,198.03,197.95,0.75743967]
[1736345149032,20.0,198.07,197.95,137.85743967]
[1736345149243,23.776884,198.09,197.96,0.75747504]
[1736345149244,20.0,198.06,197.96,0.75747504]
[1736345149556,20.0,198.06,197.95,137.1]
[1736345152656,20.0,198.06,197.93,1.599]
[1736345152836,20.0,198.02,197.93,1.599]
[1736345154070,2.46,198.06,197.94,0.7575906]
[1736345154741,20.0,198.07,197.94,0.7575906]
[1736345155333,20.0,198.05,197.93,1.599]
[1736345155847,20.0,198.04,197.93,1.599]
[1736345156051,20.0,198.0,197.93,1.599]
[1736345156660,20.0,198.0,197.9,6.5881]
[1736345157438,21.9724828,198.0,197.9,6.5881]
[1736345159160,1.9724828,198.0,197.91,0.75767393]
[1736345159363,2.46,198.01,197.9,6.5881]
[1736345159578,20.0,198.03,197.91,0.75778764]
[1736345160160,20.0,198.01,197.91,0.75778764]
[1736345160542,23.776884,198.05,197.91,0.75778764]
[1736345160865,20.0,198.02,197.91,0.75778764]
[1736345161441,7.89473857,198.09,197.91,137.85778764]
[1736345161663,29.72202857,198.1,197.94,15.37399787]
[1736345161847,29.72202857,198.1,197.95,3.21744529]
[1736345162237,20.0,198.07,197.95,3.21744529]
[1736345162459,23.84989508,198.1,197.95,3.21744529]
[1736345162767,20.0,198.06,197.95,3.21744529]
[1736345162955,3.62290508,198.1,197.96,143.4653]
[1736345162956,2.02260508,198.1,197.96,143.4653]
[1736345163154,14.48363857,198.13,197.97,0.7573594]
[1736345163155,16.94363857,198.13,197.97,0.7573594]
[1736345163349,20.0,198.09,197.97,0.7573594]
[1736345163880,20.0,198.09,197.98,15.37399787]
[1736345164056,20.223672,198.12,198.0,1.5426]
[1736345164367,23.776884,198.12,198.0,1.5426]
[1736345164545,39.150881,198.12,198.0,1.5426]
[1736345164744,20.0,198.09,198.0,1.5426]
[1736345167456,20.0,198.09,197.96,6.3653]
[1736345169776,22.02289223,198.09,197.96,6.3653]
[1736345171851,51.87337623,198.09,197.96,6.3653]
[1736345172051,20.0,198.04,197.95,1.6311]
[1736345172255,20.0,198.0,197.91,6.3636]
[1736345172852,2.44,198.02,197.91,6.3636]
[1736345173191,20.0,198.01,197.91,6.3636]
[1736345174556,20.0,198.02,197.91,6.3636]
[1736345175273,1.6482,198.08,197.92,0.75766644]
[1736345175572,1.6482,198.08,197.93,23.776884]
[1736345175573,4.0882,198.08,197.93,23.776884]
[1736345175891,4.0882,198.08,197.93,24.53438361]
[1736345176054,3.5882,198.08,197.92,3.19754428]
[1736345176259,23.776884,198.07,197.92,2.44]
[1736345176460,20.0,198.04,197.92,2.44]
[1736345176964,20.0,198.05,197.93,0.75763219]
[1736345177350,20.0,198.04,197.93,0.75763219]
[1736345178371,18.66748725,198.04,197.92,2.44]
[1736345179175,18.66748725,198.04,197.91,143.4636]
[1736345180255,18.66748725,198.04,197.91,6.3636]
[1736345180456,20.0,197.99,197.91,6.3636]
[1736345181364,2.46,198.07,197.91,6.3636]
[1736345181568,2.46,198.07,197.91,7.12140158]
[1736345181777,20.0,198.03,197.91,7.12140158]
[1736345182457,20.0,198.05,197.91,7.12140158]
[1736345182967,20.0,198.05,197.91,6.3636]
[1736345184989,20.0,198.01,197.91,6.3636]
[1736345186179,20.0,198.04,197.91,6.3636]
[1736345186373,20.0,197.99,197.91,6.3636]
[1736345188262,20.0,198.05,197.91,6.3636]
[1736345188596,23.776884,198.04,197.91,6.3636]
[1736345188776,20.0,198.01,197.91,6.3636]
[1736345189089,20.0,198.01,197.92,0.75765205]
[1736345189289,4.42523137,198.07,197.92,0.75765205]
[1736345189592,20.0,198.05,197.92,0.75765205]
[1736345189792,20.0,198.03,197.92,0.75765205]
[1736345191668,26.196884,198.06,197.92,0.75765205]
[1736345191669,20.0,198.04,197.92,0.75765205]
[1736345192184,1.96523137,198.07,197.93,138.6979]
[1736345192500,20.0,198.07,197.94,0.75745008]
[1736345193070,1.98687323,198.08,197.94,0.75745008]
[1736345193295,20.0,198.05,197.94,0.75745008]
[1736345194369,4.39087837,198.09,197.94,0.75745008]
[1736345194573,20.0,198.08,197.96,1.6046]
[1736345194774,20.0,198.07,197.97,0.75734349]
[1736345195596,20.0,198.08,197.97,0.75734349]
[1736345196070,20.0,198.07,197.98,2.42]
[1736345196278,20.0,198.07,197.97,0.75734349]
[1736345196582,20.0,198.03,197.96,1.6046]
[1736345197299,7.89473857,198.07,197.96,1.6046]
[1736345197481,20.0,198.04,197.96,1.6046]
[1736345197881,20.0,198.03,197.96,1.6046]
[1736345198178,20.0,198.01,197.9,6.2906]
[1736345198399,20.0,198.0,197.9,6.2906]
[1736345198877,20.0,197.96,197.9,6.2906]
[1736345199281,20.0,198.0,197.9,6.2906]
[1736345199479,43.776884,198.0,197.9,6.2906]
[1736345199682,2.42,197.99,197.9,6.2906]
[1736345201909,2.4,197.99,197.9,6.2906]
[1736345203000,2.4,197.99,197.88,1.5915]
[1736345204002,2.4,197.99,197.85,6.3244]
[1736345204003,20.0,197.96,197.85,6.3244]
[1736345204193,20.0,197.92,197.85,6.3244]
[1736345206699,20.0,197.92,197.83,1.5096]
[1736345206700,20.0,197.88,197.83,1.5096]
[1736345209123,20.0,197.88,197.78,3.5701]
[1736345209124,20.0,197.84,197.78,3.5701]
[1736345210294,23.776884,197.83,197.78,3.5701]
[1736345210514,23.776884,197.84,197.78,2.0]
[1736345210922,20.0,197.79,197.78,2.0]
[1736345211185,20.0,197.79,197.73,1.5831]
[1736345211186,20.0,197.78,197.73,1.5831]
[1736345211807,20.0,197.83,197.73,1.5831]
[1736345212516,20.0,197.82,197.73,1.5831]
[1736345212710,23.776884,197.85,197.73,1.5831]
[1736345213014,2.02495666,197.85,197.74,2.44]
[1736345213216,20.0,197.87,197.75,0.7582561]
[1736345213706,20.0,197.87,197.74,3.19825978]
[1736345214101,23.776884,197.9,197.74,3.19825978]
[1736345214302,20.0,197.87,197.74,3.19825978]
[1736345216017,20.0,197.87,197.75,6.5442]
[1736345216217,20.0,197.87,197.76,0.75823151]
[1736345216414,20.0,197.88,197.75,7.30244545]
[1736345220116,20.24766,197.87,197.75,7.30244545]
[1736345221114,20.24766,197.87,197.76,2.42]
[1736345224001,84.34591352,197.91,197.78,21.88029787]
[1736345224202,20.243466,197.9,197.79,0.75805243]
[1736345224527,20.0,197.87,197.78,6.5063]
[1736345224713,20.0,197.87,197.79,1.5797]
[1736345225701,20.0,197.83,197.79,1.5797]
[1736345226151,2.44,197.88,197.79,1.5797]
[1736345226427,20.0,197.87,197.79,1.5797]
[1736345227128,20.0,197.83,197.79,1.5797]
[1736345227301,23.776884,197.82,197.72,7.9455]
[1736345227508,2.44,197.81,197.72,7.9455]
[1736345228027,20.0,197.77,197.72,7.9455]
[1736345229338,82.3,197.87,197.72,7.9455]
[1736345229621,84.76,197.87,197.72,10.4055]
[1736345229805,20.0,197.84,197.73,0.75844041]
[1736345230018,2.46,197.87,197.73,0.75844041]
[1736345231339,2.06332553,197.9,197.75,1.6212]
[1736345231513,20.0,197.89,197.76,0.75818176]
[1736345231713,84.76,197.92,197.77,23.776884]
[1736345231929,84.76,197.92,197.79,6.1892]
[1736345232127,84.76,197.92,197.8,0.75809832]
[1736345232128,2.46,197.92,197.8,0.75809832]
[1736345232315,2.04457655,197.92,197.81,1.6196]
[1736345232636,20.0,197.9,197.81,1.6196]
[1736345233022,23.776884,197.95,197.81,1.6196]
[1736345233218,2.46,197.96,197.82,0.75803787]
[1736345233611,20.0,197.93,197.82,0.75803787]
[1736345233810,23.776884,197.96,197.82,0.75803787]
[1736345234537,1.98717291,197.97,197.82,0.75803787]
[1736345234712,2.44,198.01,197.82,0.75803787]
[1736345234913,23.776884,198.0,197.82,0.75803787]
[1736345235114,84.36109269,198.02,197.84,23.17379787]
[1736345235320,23.776884,198.01,197.85,16.13179396]
[1736345235522,23.776884,198.01,197.86,2.46]
[1736345235722,84.36109269,198.02,197.87,0.75779991]
[1736345236020,20.0,197.99,197.87,0.75779991]
[1736345236344,84.36109269,198.02,197.87,0.75779991]
[1736345236540,20.240451,197.99,197.87,0.75779991]
[1736345236720,20.0,197.96,197.87,0.75779991]
[1736345237139,20.240451,197.99,197.87,0.75779991]
[1736345238627,20.0,197.98,197.88,2.44]
[1736345240047,2.44,198.05,197.89,1.5324]
[1736345240243,20.0,198.02,197.89,1.5324]
[1736345240433,20.0,198.0,197.89,1.5324]
[1736345240831,20.0,198.01,197.89,1.5324]
[1736345241163,20.0,198.01,197.9,0.75774676]
[1736345241555,20.0,198.01,197.91,6.2587]
[1736345243916,20.0,198.0,197.91,6.2587]
[1736345244644,20.0,197.96,197.91,6.2587]
[1736345245846,20.0,197.96,197.89,1.5324]
[1736345248159,84.27499433,198.04,197.89,1.5324]
[1736345248340,20.0,198.01,197.89,1.5324]
[1736345249059,20.0,197.97,197.89,1.5324]
[1736345250150,20.0,198.01,197.89,1.5324]
[1736345250661,20.0,197.97,197.89,1.5324]
[1736345251045,23.776884,198.03,197.89,1.5324]
[1736345251527,20.0,198.0,197.89,1.5324]
[1736345253834,23.776884,198.03,197.9,0.75771664]
[1736345254031,84.30811547,198.04,197.9,0.75771664]
[1736345254365,20.0,198.01,197.91,2.44]
[1736345254865,20.0,198.01,197.89,1.5324]
[1736345255036,20.0,198.01,197.9,7.39892354]
[1736345255361,20.0,198.01,197.9,6.6412]
[1736345255573,22.00811547,198.04,197.9,6.6412]
[1736345258456,19.33384456,198.0,197.9,6.6412]
[1736345263978,20.0,197.99,197.9,6.6412]
[1736345264190,43.776884,197.98,197.9,6.6412]
[1736345266099,22.01194063,197.99,197.9,6.6412]
[1736345266258,20.0,197.99,197.9,6.6412]
[1736345268477,20.0,197.97,197.9,6.6412]
[1736345268678,20.0,197.99,197.9,6.6412]
[1736345270801,20.0,197.97,197.9,6.6412]
[1736345271923,23.776884,197.98,197.9,6.6412]
[1736345272207,20.0,197.95,197.89,1.5324]
[1736345272905,20.0,197.91,197.85,6.5496]
[1736345275981,20.0,197.91,197.84,1.5854]
[1736345285827,20.0,197.87,197.81,6.5884]
[1736345290501,20.0,197.87,197.8,1.6659]
[1736345290701,20.0,197.86,197.8,1.6659]
[1736345291214,20.0,197.84,197.8,1.6659]
[1736345294710,20.0,197.84,197.76,6.1078]
[1736345296910,82.3,197.87,197.77,0.75830982]
[1736345297308,82.3,197.87,197.76,6.1078]
[1736345297517,20.0,197.84,197.76,6.1078]
[1736345299010,20.0,197.8,197.75,1.505]
[1736345303609,21.96732763,197.8,197.75,1.505]
[1736345305639,20.0,197.8,197.75,1.505]
[1736345309032,20.0,197.8,197.71,6.1904]
[1736345309717,20.0,197.76,197.71,6.1904]
[1736345309919,20.0,197.76,197.7,1.5113]
[1736345310322,20.0,197.75,197.65,8.1954]
[1736345310538,20.0,197.74,197.65,8.1954]
[1736345315621,21.99090187,197.74,197.65,8.1954]
[1736345316013,20.0,197.7,197.65,8.1954]
[1736345316223,20.0,197.7,197.65,1.6166]
[1736345316439,20.0,197.7,197.6,7.7857]
[1736345319731,20.0,197.68,197.6,7.7857]
[1736345321422,20.0,197.67,197.6,7.7857]
[1736345321839,20.0,197.67,197.6,1.621]
[1736345322034,84.27910838,197.7,197.55,1.5745]
[1736345322035,104.72,197.66,197.55,1.5745]
[1736345322236,23.776884,197.65,197.55,1.5745]
[1736345322535,20.0,197.61,197.5,7.6069]
[1736345322733,82.3,197.6,197.5,7.6069]
[1736345322922,2.42,197.66,197.5,7.6069]
[1736345322923,20.0,197.56,197.5,7.6069]
[1736345324153,20.0,197.56,197.5,1.5745]
[1736345327251,2.06140439,197.61,197.5,4.75384162]
[1736345327427,82.3,197.63,197.51,6.2607]
[1736345328447,20.0,197.6,197.51,6.2607]
[1736345331056,20.0,197.6,197.52,0.75920052]
[1736345331263,20.0,197.6,197.51,6.2607]
[1736345333254,20.0,197.6,197.51,7.01989198]
[1736345335656,20.0,197.6,197.51,6.2607]
[1736345339335,20.0,197.6,197.53,15.39460996]
[1736345339539,20.0,197.6,197.54,16.15368364]
[1736345339858,3.9023,197.68,197.54,16.15368364]
[1736345339859,20.0,197.64,197.55,1.6351]
[1736345340245,82.3,197.67,197.55,1.6351]
[1736345340850,20.0,197.64,197.55,1.6351]
[1736345341437,20.0,197.64,197.55,2.39410158]
[1736345344738,82.3,197.67,197.55,2.39410158]
[1736345345473,20.0,197.64,197.55,2.39410158]
[1736345347864,20.0,197.64,197.55,3.39410158]
[1736345352060,20.0,197.64,197.55,2.6351]
[1736345352568,20.0,197.59,197.55,2.6351]
[1736345353064,20.0,197.59,197.55,1.0]
[1736345354438,20.0,197.58,197.55,1.0]
[1736345355046,43.776884,197.58,197.55,1.0]
[1736345355860,23.776884,197.56,197.55,1.0]
[1736345357857,26.156884,197.56,197.55,1.0]
[1736345361551,20.0,197.56,197.55,1.0]
[1736345361864,22.38,197.56,197.55,1.0]
[1736345362468,2.04193795,197.59,197.55,1.0]
[1736345362644,20.0,197.62,197.55,1.0]
[1736345363144,3.5492912,197.64,197.55,1.0]
[1736345364164,23.776884,197.63,197.55,1.0]
[1736345364372,20.0,197.6,197.55,1.0]
[1736345365061,20.0,197.62,197.55,1.0]
[1736345366368,23.776884,197.61,197.55,1.0]
[1736345366547,20.0,197.58,197.55,1.0]
[1736345369374,20.0,197.57,197.55,1.0]
[1736345370255,2.06684315,197.58,197.55,1.0]
[1736345370460,20.0,197.56,197.55,1.0]
[1736345372082,43.776884,197.56,197.55,1.0]
[1736345373279,20.0,197.52,197.46,1.5049]
[1736345376973,26.903502,197.52,197.46,1.5049]
[1736345379702,20.0,197.47,197.41,7.7815]
[1736345380287,6.903502,197.52,197.38,2.38]
[1736345380288,20.0,197.46,197.38,2.38]
[1736345381456,20.0,197.46,197.38,3.13970782]
[1736345381658,20.0,197.46,197.38,0.75970782]
[1736345381878,20.0,197.46,197.37,2.38]
[1736345382160,20.0,197.46,197.38,0.75972096]
[1736345382390,6.903502,197.52,197.4,9.8473531]
[1736345382590,6.903502,197.52,197.41,10.60685165]
[1736345382879,20.0,197.49,197.41,0.75949855]
[1736345383271,20.0,197.49,197.42,1.5334]
[1736345385465,20.0,197.52,197.42,1.5334]
[1736345385667,20.0,197.5,197.42,1.5334]
[1736345386788,20.0,197.5,197.43,2.39937981]
[1736345388773,20.0,197.5,197.44,0.75950483]
[1736345389088,84.69938,197.55,197.44,3.13950483]
[1736345389588,2.00220057,197.59,197.45,23.776884]
[1736345389790,0.75962504,197.6,197.47,23.776884]
[1736345389984,21.03277304,197.6,197.48,6.80483038]
[1736345390572,20.0,197.57,197.48,6.80483038]
[1736345391202,21.03277304,197.6,197.48,6.80483038]
[1736345392396,20.0,197.57,197.48,6.80483038]
[1736345392782,20.0,197.57,197.49,2.40234332]
[1736345392984,20.273148,197.6,197.5,0.75919697]
[1736345393287,22.31425249,197.61,197.51,1.616]
[1736345393490,20.0,197.58,197.51,1.616]
[1736345393882,20.0,197.58,197.52,0.75918742]
[1736345394084,20.0,197.63,197.52,0.75918742]
[1736345394379,20.0,197.58,197.52,0.75918742]
[1736345394603,0.75962504,197.65,197.52,0.75918742]
[1736345394898,20.0,197.6,197.52,0.75918742]
[1736345395481,20.0,197.6,197.51,3.996]
[1736345395482,0.75962504,197.59,197.51,3.996]
[1736345396484,0.75962504,197.6,197.51,3.996]
[1736345398287,20.0,197.61,197.51,3.996]
[1736345398487,20.0,197.61,197.51,4.75520015]
[1736345399082,0.75962504,197.6,197.51,3.996]
[1736345399284,20.0,197.57,197.51,3.996]
[1736345400400,20.0,197.57,197.48,6.0456]
[1736345400613,20.0,197.55,197.48,8.4256]
[1736345400786,20.0,197.55,197.48,6.0456]
[1736345401101,20.0,197.55,197.46,3.9442]
[1736345401884,20.0,197.55,197.47,2.40702161]
[1736345402680,20.0,197.55,197.48,0.75934794]
[1736345403605,20.0,197.55,197.49,4.78702161]
[1736345403900,20.0,197.55,197.49,5.54625975]
[1736345404896,20.0,197.55,197.5,2.40702161]
[1736345405289,20.0,197.59,197.5,2.40702161]
[1736345405688,0.75962504,197.58,197.5,2.40702161]
[1736345406526,20.0,197.54,197.46,1.5642]
[1736345406684,20.0,197.53,197.46,1.5642]
[1736345408417,20.0,197.53,197.47,2.4067362]
[1736345408712,0.75962504,197.52,197.47,2.4067362]
[1736345408898,20.0,197.49,197.47,2.4067362]
[1736345409819,0.75962504,197.48,197.47,2.4067362]
[1736345410802,0.75962504,197.48,197.37,1.6575]
[1736345411403,20.0,197.45,197.37,1.6575]
[1736345411606,20.75962504,197.45,197.37,1.6575]
[1736345411911,20.75962504,197.45,197.34,0.75976843]
[1736345412517,20.0,197.45,197.38,2.40591055]
[1736345413891,20.0,197.45,197.34,0.75976843]
[1736345414092,0.75962504,197.44,197.33,45.62]
[1736345415419,1.5446,197.43,197.34,2.40398481]
[1736345415613,0.75962504,197.42,197.34,2.40398481]
[1736345417016,0.75962504,197.42,197.3,2.34264191]
[1736345418323,1.5446,197.43,197.31,23.776884]
[1736345418502,1.5446,197.43,197.32,0.75987289]
[1736345419600,0.75962504,197.42,197.31,26.93767242]
[1736345420026,0.75962504,197.42,197.33,2.40089333]
[1736345420220,82.3,197.42,197.33,3.16082831]
[1736345420811,20.0,197.39,197.33,3.16082831]
[1736345421197,82.3,197.46,197.34,23.776884]
[1736345421402,83.9639,197.48,197.36,63.05528313]
[1736345421701,83.9639,197.48,197.37,0.75962534]
[1736345422005,82.3,197.48,197.38,25.431384]
[1736345422212,82.3,197.48,197.39,0.75957403]
[1736345422412,82.3,197.52,197.4,63.05528313]
[1736345422609,82.3,197.52,197.42,23.776884]
[1736345422817,82.3,197.52,197.43,0.75945954]
[1736345425005,20.0,197.49,197.43,0.75945954]
[1736345425531,20.0,197.49,197.42,0.75948223]
[1736345425728,20.0,197.49,197.41,2.38]
[1736345425931,0.75962504,197.48,197.39,2.38]
[1736345426118,20.75962504,197.49,197.39,2.38]
[1736345428427,26.0896,197.48,197.34,23.776884]
[1736345428735,0.75962504,197.47,197.34,2.38]
[1736345429031,0.75962504,197.47,197.35,0.7598131]
[1736345429422,0.75962504,197.47,197.35,3.15648803]
[1736345430607,26.84922504,197.48,197.35,3.15648803]
[1736345431439,26.84922504,197.48,197.36,2.39667493]
[1736345431607,23.776884,197.47,197.36,2.39667493]
[1736345431808,102.3,197.44,197.36,2.39667493]
[1736345432013,0.75962504,197.43,197.36,2.39667493]
[1736345432616,82.3,197.41,197.36,2.39667493]
[1736345432827,20.0,197.38,197.31,4.0459]
[1736345433326,20.0,197.38,197.31,1.6659]
[1736345434737,20.0,197.38,197.31,2.42589121]
[1736345434950,20.0,197.38,197.32,2.39549044]
[1736345435148,20.0,197.38,197.33,0.75986352]
[1736345435665,20.0,197.41,197.33,0.75986352]
[1736345436154,20.0,197.41,197.34,2.39549044]
[1736345436365,20.0,197.41,197.35,0.75981222]
[1736345436564,20.0,197.41,197.34,3.1552997]
[1736345437084,20.0,197.41,197.34,2.39549044]
[1736345437953,20.0,197.41,197.32,40.03821132]
[1736345439754,20.0,197.41,197.33,2.39671979]
[1736345441166,20.0,197.4,197.33,2.39671979]
[1736345441571,20.0,197.4,197.34,2.39671979]
[1736345443459,20.0,197.4,197.33,2.39671979]
[1736345444880,20.0,197.4,197.34,0.75989037]
[1736345445441,20.0,197.4,197.34,3.15661016]
[1736345445757,82.3,197.43,197.34,3.15661016]
[1736345447233,20.0,197.44,197.34,3.15661016]
[1736345447678,20.0,197.44,197.35,2.39671979]
[1736345449063,20.0,197.44,197.36,2.39671979]
[1736345449762,0.75962504,197.43,197.36,2.39671979]
[1736345451051,0.75962504,197.43,197.33,2.39671979]
[1736345452941,20.0,197.39,197.33,2.39671979]
[1736345453150,20.0,197.37,197.34,2.39671979]
[1736345454364,20.0,197.35,197.27,42.41851776]
[1736345454665,20.0,197.35,197.27,40.03851776]
[1736345454864,20.0,197.35,197.25,23.776884]
[1736345455044,20.0,197.35,197.24,0.76009862]
[1736345455958,20.0,197.35,197.24,3.14009862]
[1736345456364,20.0,197.35,197.25,2.40465773]
[1736345456779,0.75962504,197.34,197.25,2.40465773]
[1736345457261,20.0,197.33,197.25,2.40465773]
[1736345457775,20.0,197.33,197.26,2.40465773]
[1736345459264,82.3,197.36,197.26,3.16488669]
[1736345459471,83.9007,197.42,197.27,26.18154173]
[1736345459649,2.74477292,197.41,197.28,0.7600046]
[1736345459845,20.0,197.39,197.29,23.776884]
[1736345460065,83.9007,197.42,197.3,0.75991987]
[1736345460268,20.0,197.39,197.31,2.38]
[1736345460440,20.0,197.39,197.32,0.7599019]
[1736345461270,20.0,197.42,197.33,23.776884]
[1736345461459,8.65242824,197.45,197.34,0.75984215]
[1736345461961,20.0,197.42,197.34,0.75984215]
[1736345462560,20.0,197.42,197.35,2.40300969]
[1736345462868,20.0,197.41,197.35,2.40300969]
[1736345463069,20.75962504,197.41,197.35,2.40300969]
[1736345463248,20.0,197.41,197.35,2.40300969]
[1736345464441,20.0,197.41,197.36,2.40300969]
[1736345466061,20.0,197.41,197.37,2.40300969]
[1736345466469,20.0,197.39,197.37,2.40300969]
[1736345467358,0.75962504,197.38,197.37,2.40300969]
[1736345467550,24.53650904,197.41,197.37,2.40300969]
[1736345467948,24.53650904,197.41,197.32,2.40300969]
[1736345468147,0.75962504,197.41,197.32,2.40300969]
[1736345469974,0.75962504,197.41,197.33,2.40300969]
[1736345471164,20.0,197.36,197.33,2.40300969]
[1736345471562,20.0,197.36,197.34,2.40300969]
[1736345473675,20.0,197.36,197.28,2.38]
[1736345473979,20.0,197.36,197.21,40.86149913]
[1736345473980,20.0,197.3,197.21,40.86149913]
[1736345474280,20.0,197.3,197.21,41.62179945]
[1736345476382,20.0,197.3,197.21,40.86149913]
[1736345476577,20.0,197.3,197.21,1.5831]
[1736345476764,20.75962504,197.3,197.21,1.5831]
[1736345477159,20.0,197.28,197.21,1.5831]
[1736345477665,20.0,197.28,197.18,23.776884]
[1736345477864,20.0,197.28,197.19,0.76040833]